fUST/lending_fUST_20250701
["ID","MTS","AMOUNT","RATE_DAILY","PERIOD"]
[368848305,1751376646357,-485.12612632,0.00018191,2]
[368848307,1751376646368,-460.0,0.00018191,2]
[368848309,1751376646378,-460.0,0.00018191,2]
[368848311,1751376646388,-460.0,0.00018191,2]
[368848313,1751376646399,-460.0,0.00018191,2]
[368848315,1751376646409,-460.0,0.00018191,2]
[368848316,1751376646418,-460.0,0.00018191,2]
[368848319,1751376646428,-460.0,0.00018191,2]
[368848321,1751376646438,-460.0,0.00018191,2]
[368848322,1751376646448,-460.0,0.00018191,2]
[368848324,1751376646459,-460.0,0.00018191,2]
[368848327,1751376646469,-460.0,0.00018191,2]
[368848329,1751376646479,-704.77,0.00018191,2]
[368848331,1751376646490,-460.0,0.00018191,2]
[368848333,1751376646500,-460.0,0.00018191,2]
[368848335,1751376646511,-460.0,0.00018191,2]
[368848337,1751376646523,-768.12,0.00018191,2]
[368848339,1751376646533,-5015.81,0.00018191,2]
[368848341,1751376646544,-460.0,0.00018191,2]
[368848342,1751376646555,-737.94,0.00018191,2]
[368848345,1751376646567,-1161.05,0.00018191,2]
[368848347,1751376646578,-651.54,0.00018191,2]
[368848349,1751376646588,-460.0,0.00018191,2]
[368848351,1751376646599,-460.0,0.00018191,2]
[368848352,1751376646610,-2469.46,0.00018191,2]
[368848354,1751376646621,-1448.72,0.00018191,2]
[368848356,1751376646631,-460.0,0.00018191,2]
[368848358,1751376646642,-460.0,0.00018191,2]
[368848360,1751376646653,-460.0,0.00018191,2]
[368848362,1751376646663,-460.0,0.00018191,2]
[368848364,1751376646675,-460.0,0.00018192,2]
[368848366,1751376646684,-460.0,0.00018192,2]
[368848368,1751376646695,-460.0,0.00018192,2]
[368848370,1751376646706,-460.0,0.00018192,2]
[368848372,1751376646716,-460.0,0.00018192,2]
[368848375,1751376646726,-460.0,0.00018192,2]
[368848387,1751376646736,-3553.77,0.00018192,2]
[368848389,1751376646870,-460.0,0.00018192,2]
[368848391,1751376646882,-1753.82,0.00018192,2]
[368848393,1751376646892,-5531.74,0.00018192,2]
[368848395,1751376646902,-1794.4,0.00018192,2]
[368848397,1751376646912,-460.0,0.00018192,2]
[368848399,1751376646923,-460.0,0.00018193,2]
[368848401,1751376646933,-460.0,0.00018193,2]
[368848403,1751376646943,-460.0,0.00018193,2]
[368848405,1751376646953,-460.0,0.00018193,2]
[368848407,1751376646963,-460.0,0.00018193,2]
[368848409,1751376646974,-460.0,0.00018193,2]
[368848411,1751376646984,-253.11,0.00018194,2]
[368848413,1751376646995,-460.0,0.00018194,2]
[368848415,1751376647006,-460.0,0.00018194,2]
[368848417,1751376647017,-460.0,0.00018194,2]
[368848419,1751376647026,-460.0,0.00018194,2]
[368848421,1751376647035,-460.0,0.00018194,2]
[368848423,1751376647045,-428.2852463,0.00018194,2]
[368848425,1751376647053,-460.0,0.00018194,2]
[368848427,1751376647062,-460.0,0.00018194,2]
[368848429,1751376647072,-460.0,0.00018194,2]
[368848431,1751376647081,-460.0,0.00018194,2]
[368848433,1751376647091,-460.0,0.00018194,2]
[368848435,1751376647100,-460.0,0.00018194,2]
[368848437,1751376647110,-460.0,0.00018194,2]
[368848439,1751376647120,-995.39354499,0.00018221,2]
[368848441,1751376647130,-1000.0,0.00018221,2]
[368848443,1751376647139,-1000.0,0.00018221,2]
[368848445,1751376647148,-1000.0,0.00018221,2]
[368848447,1751376647157,-1000.0,0.00018221,2]
[368848448,1751376647166,-441.16495049,0.00018221,2]
[368848451,1751376647177,-1000.0,0.00018221,2]
[368848453,1751376647187,-572.436795,0.00018306,2]
[368848454,1751376647196,-460.0,0.00018365,2]
[368848456,1751376647205,-460.0,0.00018365,2]
[368848458,1751376647215,-460.0,0.00018365,2]
[368848460,1751376647225,-524.13,0.00018365,2]
[368848462,1751376647235,-3650.08,0.00018365,2]
[368848464,1751376647244,-460.0,0.00018365,2]
[368848467,1751376647254,-787.8,0.00018365,2]
[368848469,1751376647264,-460.0,0.00018365,2]
[368848470,1751376647273,-460.0,0.00018365,2]
[368848472,1751376647283,-460.0,0.00018365,2]
[368848474,1751376647292,-1272.84,0.00018365,2]
[368848476,1751376647302,-460.0,0.00018365,2]
[368848478,1751376647312,-2622.27,0.00018365,2]
[368848480,1751376647322,-4856.27,0.00018365,2]
[368848482,1751376647331,-460.0,0.00018365,2]
[368848484,1751376647341,-460.0,0.00018365,2]
[368848486,1751376647350,-1670.35,0.00018365,2]
[368848488,1751376647360,-460.0,0.00018365,2]
[368848490,1751376647369,-460.0,0.00018365,2]
[368848492,1751376647379,-460.0,0.00018365,2]
[368848494,1751376647389,-460.0,0.00018365,2]
[368848496,1751376647399,-460.0,0.00018365,2]
[368848498,1751376647409,-632.08,0.00018365,2]
[368848500,1751376647418,-460.0,0.00018365,2]
[368848502,1751376647428,-460.0,0.00018365,2]
[368848504,1751376647437,-460.0,0.00018365,2]
[368848506,1751376647446,-2487.2,0.00018365,2]
[368848508,1751376647455,-2089.93,0.00018365,2]
[368848510,1751376647465,-460.0,0.00018365,2]
[368848512,1751376647474,-460.0,0.00018365,2]
[368848514,1751376647484,-460.0,0.00018365,2]
[368848516,1751376647494,-1083.66,0.00018365,2]
[368848519,1751376647504,-460.0,0.00018365,2]
[368848521,1751376647514,-2999.72,0.00018365,2]
[368848522,1751376647524,-460.0,0.00018367,2]
[368848524,1751376647534,-461.41492957,0.00018367,2]
[368848526,1751376647544,-2053.17,0.00018367,2]
[368848529,1751376647555,-1092.8,0.00018367,2]
[368848530,1751376647565,-1591.45,0.00018367,2]
[368848533,1751376647575,-317.08952222,0.00018429,2]
[368848535,1751376647585,-160.0,0.00018431,2]
[368848536,1751376647596,-230.32585361,0.00018431,2]
[368848538,1751376647606,-847.53272281,0.00018431,2]
[368848541,1751376647615,-215.01728679,0.00018431,2]
[368848542,1751376647625,-12571.40790328,0.00018431,2]
[368848544,1751376647635,-160.0,0.00018431,2]
[368848546,1751376647645,-160.0,0.00018431,2]
[368848549,1751376647655,-837.20943635,0.00018431,2]
[368848551,1751376647664,-160.0,0.00018431,2]
[368848553,1751376647674,-213.87551669,0.00018431,2]
[368848555,1751376647685,-160.0,0.00018431,2]
[368848556,1751376647695,-160.0,0.00018431,2]
[368848558,1751376647705,-460.0,0.00018462,2]
[368848561,1751376647715,-460.0,0.00018462,2]
[368848562,1751376647725,-460.0,0.00018462,2]
[368848564,1751376647736,-460.0,0.00018462,2]
[368848567,1751376647746,-460.0,0.00018462,2]
[368848568,1751376647756,-460.0,0.00018462,2]
[368848570,1751376647767,-460.0,0.00018462,2]
[368848573,1751376647777,-460.0,0.00018462,2]
[368848575,1751376647791,-460.0,0.00018462,2]
[368848576,1751376647801,-460.0,0.00018462,2]
[368848578,1751376647811,-460.0,0.00018462,2]
[368848580,1751376647820,-460.0,0.00018462,2]
[368848582,1751376647831,-629.01,0.00018462,2]
[368848584,1751376647840,-460.0,0.00018462,2]
[368848586,1751376647851,-460.0,0.00018462,2]
[368848588,1751376647861,-460.0,0.00018462,2]
[368848590,1751376647871,-460.0,0.00018462,2]
[368848592,1751376647881,-460.0,0.00018462,2]
[368848594,1751376647890,-460.0,0.00018462,2]
[368848596,1751376647901,-460.0,0.00018462,2]
[368848598,1751376647911,-460.0,0.00018462,2]
[368848600,1751376647922,-460.0,0.00018462,2]
[368848602,1751376647931,-460.0,0.00018462,2]
[368848604,1751376647941,-460.0,0.00018462,2]
[368848606,1751376647950,-460.0,0.00018462,2]
[368848609,1751376647960,-642.37,0.00018462,2]
[368848611,1751376647971,-460.0,0.00018462,2]
[368848612,1751376647980,-474.1,0.00018462,2]
[368848615,1751376647992,-474.54,0.00018462,2]
[368848617,1751376648002,-460.0,0.00018462,2]
[368848619,1751376648014,-1394.04,0.00018462,2]
[368848621,1751376648024,-460.0,0.00018462,2]
[368848623,1751376648034,-460.0,0.00018462,2]
[368848624,1751376648043,-603.08,0.00018462,2]
[368848627,1751376648053,-1256.82,0.00018462,2]
[368848628,1751376648063,-857.59,0.00018462,2]
[368848630,1751376648073,-460.0,0.00018462,2]
[368848632,1751376648083,-460.0,0.00018462,2]
[368848634,1751376648094,-460.0,0.00018462,2]
[368848636,1751376648105,-460.0,0.00018462,2]
[368848639,1751376648116,-540.67,0.00018462,2]
[368848641,1751376648126,-460.0,0.00018462,2]
[368848643,1751376648136,-1100.95,0.00018462,2]
[368848645,1751376648146,-703.62,0.00018462,2]
[368848647,1751376648157,-460.0,0.00018462,2]
[368848649,1751376648167,-513.66,0.00018462,2]
[368848651,1751376648178,-653.48,0.00018462,2]
[368848653,1751376648189,-495.49,0.00018462,2]
[368848655,1751376648200,-463.50923836,0.00018462,2]
[368848657,1751376648209,-678.27,0.00018462,2]
[368848659,1751376648219,-460.0,0.00018462,2]
[368848661,1751376648230,-557.05344312,0.00018463,2]
[368848663,1751376648241,-460.0,0.00018463,2]
[368848665,1751376648251,-286.5,0.00018463,2]
[368848667,1751376648261,-460.0,0.00018463,2]
[368848669,1751376648272,-460.0,0.00018463,2]
[368848671,1751376648282,-460.0,0.00018463,2]
[368848672,1751376648294,-209.19846399,0.00018463,2]
[368848674,1751376648305,-823.93,0.00018463,2]
[368848676,1751376648315,-460.0,0.00018463,2]
[368848678,1751376648325,-460.0,0.00018463,2]
[368848679,1751376648336,-460.0,0.00018463,2]
[368848680,1751376648347,-568.81026549,0.00018463,2]
[368848681,1751376648357,-460.0,0.00018463,2]
[368848682,1751376648367,-695.91,0.00018463,2]
[368848683,1751376648378,-460.0,0.00018463,2]
[368848684,1751376648389,-460.0,0.00018463,2]
[368848685,1751376648399,-460.0,0.00018463,2]
[368848686,1751376648409,-460.0,0.00018463,2]
[368848687,1751376648420,-460.0,0.00018463,2]
[368848688,1751376648430,-460.0,0.00018463,2]
[368848689,1751376648440,-441.81014974,0.00018463,2]
[368848690,1751376648450,-460.0,0.00018463,2]
[368848691,1751376648461,-979.38,0.00018463,2]
[368848692,1751376648471,-460.0,0.00018463,2]
[368848693,1751376648481,-460.0,0.00018463,2]
[368848694,1751376648490,-460.0,0.00018463,2]
[368848695,1751376648502,-460.0,0.00018463,2]
[368848696,1751376648515,-460.0,0.00018463,2]
[368848697,1751376648526,-460.0,0.00018463,2]
[368848698,1751376648537,-460.0,0.00018463,2]
[368848699,1751376648547,-460.0,0.00018463,2]
[368848700,1751376648558,-460.0,0.00018465,2]
[368848701,1751376648568,-460.0,0.00018465,2]
[368848702,1751376648579,-460.0,0.00018465,2]
[368848703,1751376648590,-460.0,0.00018465,2]
[368848704,1751376648601,-460.0,0.00018465,2]
[368848705,1751376648612,-186.22,0.00018465,2]
[368848706,1751376648622,-1129.1,0.00018465,2]
[368848707,1751376648632,-460.0,0.00018465,2]
[368848709,1751376648643,-460.0,0.00018465,2]
[368848711,1751376648653,-460.0,0.00018465,2]
[368848712,1751376648663,-460.0,0.00018465,2]
[368848714,1751376648672,-400.0,0.00018465,2]
[368848716,1751376648683,-460.0,0.00018465,2]
[368848718,1751376648693,-460.0,0.00018465,2]
[368848720,1751376648703,-460.0,0.00018465,2]
[368848722,1751376648715,-192.88976356,0.00018465,2]
[368848725,1751376648726,-460.0,0.00018465,2]
[368848726,1751376648737,-460.0,0.00018465,2]
[368848729,1751376648747,-460.0,0.00018465,2]
[368848731,1751376648758,-460.0,0.00018465,2]
[368848733,1751376648769,-460.0,0.00018465,2]
[368848735,1751376648780,-460.0,0.00018465,2]
[368848736,1751376648794,-704.77,0.00018465,2]
[368848738,1751376648805,-460.0,0.00018465,2]
[368848740,1751376648816,-460.0,0.00018465,2]
[368848742,1751376648827,-768.12,0.00018465,2]
[368848745,1751376648838,-5015.81,0.00018465,2]
[368848747,1751376648848,-460.0,0.00018465,2]
[368848748,1751376648860,-737.94,0.00018465,2]
[368848750,1751376648870,-1161.05,0.00018465,2]
[368848752,1751376648881,-651.54,0.00018465,2]
[368848754,1751376648891,-330.9954464,0.00018465,2]
[368848756,1751376648901,-460.0,0.00018465,2]
[368848758,1751376648911,-2469.46,0.00018465,2]
[368848760,1751376648923,-1448.72,0.00018465,2]
[368848762,1751376648933,-460.0,0.00018465,2]
[368848775,1751376649054,-460.0,0.00018465,2]
[368848777,1751376649065,-460.0,0.00018465,2]
[368848779,1751376649077,-460.0,0.00018465,2]
[368848781,1751376649088,-540.0,0.00018466,2]
[368848783,1751376649098,-460.0,0.00018466,2]
[368848785,1751376649108,-460.0,0.00018466,2]
[368848787,1751376649118,-460.0,0.00018466,2]
[368848790,1751376649129,-460.0,0.00018466,2]
[368848791,1751376649139,-460.0,0.00018466,2]
[368848794,1751376649149,-3553.77,0.00018466,2]
[368848796,1751376649161,-460.0,0.00018466,2]
[368848797,1751376649171,-1753.82,0.00018466,2]
[368848799,1751376649181,-5531.74,0.00018466,2]
[368848801,1751376649191,-1794.4,0.00018466,2]
[368848804,1751376649202,-460.0,0.00018466,2]
[368848806,1751376649212,-460.0,0.00018467,2]
[368848808,1751376649222,-465.91448919,0.00018467,2]
[368848810,1751376649233,-460.0,0.00018467,2]
[368848811,1751376649243,-460.0,0.00018467,2]
[368848813,1751376649254,-493.56164806,0.00018467,2]
[368848815,1751376649265,-460.0,0.00018467,2]
[368848817,1751376649276,-460.0,0.00018468,2]
[368848819,1751376649287,-460.0,0.00018468,2]
[368848821,1751376649297,-460.0,0.00018468,2]
[368848823,1751376649308,-460.0,0.00018468,2]
[368848825,1751376649319,-460.0,0.00018468,2]
[368848827,1751376649329,-460.0,0.00018468,2]
[368848830,1751376649340,-460.0,0.00018468,2]
[368848831,1751376649350,-460.0,0.00018468,2]
[368848833,1751376649360,-460.0,0.00018468,2]
[368848836,1751376649371,-460.0,0.00018468,2]
[368848838,1751376649381,-460.0,0.00018468,2]
[368848840,1751376649391,-460.0,0.00018468,2]
[368848842,1751376649401,-1500.0,0.00018468,2]
[368848844,1751376649412,-1001.28082104,0.00018521,2]
[368848846,1751376649422,-1000.0,0.00018521,2]
[368848848,1751376649432,-1000.0,0.00018521,2]
[368848849,1751376649441,-1000.0,0.00018521,2]
[368848851,1751376649451,-245.16787641,0.00018521,2]
[368848853,1751376649461,-1000.0,0.00018521,2]
[368848855,1751376649471,-1000.0,0.00018521,2]
[368848858,1751376649481,-396.67202616,0.00018521,2]
[368848859,1751376649492,-505.86192681,0.00018521,2]
[368848862,1751376649502,-1000.0,0.00018521,2]
[368848864,1751376649513,-1000.0,0.00018521,2]
[368848866,1751376649525,-1000.0,0.00018521,2]
[368848868,1751376649536,-1000.0,0.00018521,2]
[368848869,1751376649546,-1000.0,0.00018521,2]
[368848872,1751376649556,-500.0,0.00018521,2]
[368848873,1751376649567,-1000.0,0.00018521,2]
[368848875,1751376649577,-460.0,0.00018639,2]
[368848877,1751376649587,-460.0,0.00018639,2]
[368848879,1751376649597,-460.0,0.00018639,2]
[368848881,1751376649608,-524.13,0.00018639,2]
[368848883,1751376649618,-3650.08,0.00018639,2]
[368848885,1751376649629,-460.0,0.00018639,2]
[368848887,1751376649639,-787.8,0.00018639,2]
[368848889,1751376649649,-460.0,0.00018639,2]
[368848891,1751376649660,-460.0,0.00018639,2]
[368848893,1751376649670,-460.0,0.00018639,2]
[368848895,1751376649680,-1272.84,0.00018639,2]
[368848897,1751376649691,-460.0,0.00018639,2]
[368848899,1751376649701,-2622.27,0.00018639,2]
[368848901,1751376649711,-4856.27,0.00018639,2]
[368848903,1751376649722,-460.0,0.00018639,2]
[368848905,1751376649733,-460.0,0.00018639,2]
[368848907,1751376649743,-1670.35,0.00018639,2]
[368848909,1751376649753,-460.0,0.00018639,2]
[368848911,1751376649766,-460.0,0.00018639,2]
[368848913,1751376649777,-460.0,0.00018639,2]
[368848916,1751376649791,-460.0,0.00018639,2]
[368848918,1751376649801,-460.0,0.00018639,2]
[368848920,1751376649811,-632.08,0.00018639,2]
[368848922,1751376649822,-460.0,0.00018639,2]
[368848924,1751376649833,-460.0,0.00018639,2]
[368848926,1751376649842,-460.0,0.00018639,2]
[368848928,1751376649851,-2487.2,0.00018639,2]
[368848930,1751376649862,-2089.93,0.00018639,2]
[368848932,1751376649872,-460.0,0.00018639,2]
[368848934,1751376649881,-460.0,0.00018639,2]
[368848936,1751376649891,-460.0,0.00018639,2]
[368848938,1751376649900,-1083.66,0.00018639,2]
[368848940,1751376649911,-460.0,0.00018639,2]
[368848942,1751376649921,-2999.72,0.00018639,2]
[368848944,1751376649931,-460.0,0.00018641,2]
[368848946,1751376649941,-2053.17,0.00018641,2]
[368848948,1751376649952,-1092.8,0.00018641,2]
[368848950,1751376649963,-1591.45,0.00018641,2]
[368848951,1751376649973,-244.51174675,0.00018734,2]
[368848953,1751376649983,-460.0,0.00018736,2]
[368848956,1751376649993,-460.0,0.00018736,2]
[368848957,1751376650003,-460.0,0.00018736,2]
[368848959,1751376650013,-460.0,0.00018736,2]
[368848961,1751376650024,-460.0,0.00018736,2]
[368848963,1751376650035,-460.0,0.00018736,2]
[368848965,1751376650048,-460.0,0.00018736,2]
[368848967,1751376650058,-313.63029245,0.00018736,2]
[368848969,1751376650068,-460.0,0.00018736,2]
[368848971,1751376650078,-460.0,0.00018736,2]
[368848973,1751376650088,-460.0,0.00018736,2]
[368848975,1751376650099,-629.01,0.00018736,2]
[368848977,1751376650109,-460.0,0.00018736,2]
[368848979,1751376650119,-460.0,0.00018736,2]
[368848981,1751376650129,-460.0,0.00018736,2]
[368848984,1751376650140,-460.0,0.00018736,2]
[368848986,1751376650151,-460.0,0.00018736,2]
[368848988,1751376650161,-460.0,0.00018736,2]
[368848990,1751376650172,-609.38714712,0.00018736,2]
[368848992,1751376650182,-460.0,0.00018736,2]
[368848994,1751376650193,-460.0,0.00018736,2]
[368848996,1751376650203,-460.0,0.00018736,2]
[368848998,1751376650213,-460.0,0.00018736,2]
[368849000,1751376650223,-460.0,0.00018736,2]
[368849002,1751376650233,-642.37,0.00018736,2]
[368849004,1751376650243,-460.0,0.00018736,2]
[368849006,1751376650255,-474.1,0.00018736,2]
[368849008,1751376650267,-474.54,0.00018736,2]
[368849010,1751376650277,-460.0,0.00018736,2]
[368849012,1751376650286,-1394.04,0.00018736,2]
[368849014,1751376650297,-460.0,0.00018736,2]
[368849016,1751376650307,-460.0,0.00018736,2]
[368849018,1751376650316,-603.08,0.00018736,2]
[368849020,1751376650326,-1256.82,0.00018736,2]
[368849022,1751376650336,-857.59,0.00018736,2]
[368849024,1751376650346,-460.0,0.00018736,2]
[368849026,1751376650357,-418.36752448,0.00018736,2]
[368849028,1751376650367,-460.0,0.00018736,2]
[368849030,1751376650377,-460.0,0.00018736,2]
[368849032,1751376650387,-540.67,0.00018736,2]
[368849034,1751376650397,-460.0,0.00018736,2]
[368849036,1751376650407,-1100.95,0.00018736,2]
[368849038,1751376650417,-703.62,0.00018736,2]
[368849040,1751376650427,-460.0,0.00018736,2]
[368849042,1751376650437,-513.66,0.00018736,2]
[368849044,1751376650448,-653.48,0.00018736,2]
[368849046,1751376650460,-495.49,0.00018736,2]
[368849048,1751376650470,-678.27,0.00018736,2]
[368849050,1751376650479,-460.0,0.00018736,2]
[368849052,1751376650489,-460.0,0.00018737,2]
[368849054,1751376650498,-460.0,0.00018737,2]
[368849056,1751376650509,-460.0,0.00018737,2]
[368849058,1751376650520,-460.0,0.00018737,2]
[368849060,1751376650530,-823.93,0.00018737,2]
[368849062,1751376650540,-460.0,0.00018737,2]
[368849064,1751376650550,-460.0,0.00018737,2]
[368849066,1751376650562,-460.0,0.00018737,2]
[368849068,1751376650572,-460.0,0.00018737,2]
[368849070,1751376650582,-695.91,0.00018737,2]
[368849072,1751376650592,-460.0,0.00018737,2]
[368849074,1751376650601,-460.0,0.00018737,2]
[368849076,1751376650611,-460.0,0.00018737,2]
[368849078,1751376650621,-460.0,0.00018737,2]
[368849081,1751376650631,-460.0,0.00018737,2]
[368849082,1751376650640,-460.0,0.00018737,2]
[368849085,1751376650650,-460.0,0.00018737,2]
[368849087,1751376650660,-979.38,0.00018737,2]
[368849088,1751376650670,-460.0,0.00018737,2]
[368849091,1751376650680,-460.0,0.00018737,2]
[368849093,1751376650691,-460.0,0.00018737,2]
[368849095,1751376650701,-460.0,0.00018737,2]
[368849097,1751376650711,-460.0,0.00018737,2]
[368849099,1751376650722,-460.0,0.00018737,2]
[368849100,1751376650732,-460.0,0.00018737,2]
[368849102,1751376650743,-460.0,0.00018737,2]
[368849105,1751376650753,-460.0,0.00018739,2]
[368849106,1751376650763,-460.0,0.00018739,2]
[368849108,1751376650775,-460.0,0.00018739,2]
[368849110,1751376650787,-460.0,0.00018739,2]
[368849112,1751376650798,-1129.1,0.00018739,2]
[368849114,1751376650809,-460.0,0.00018739,2]
[368849116,1751376650819,-460.0,0.00018739,2]
[368849118,1751376650832,-460.0,0.00018739,2]
[368849120,1751376650842,-460.0,0.00018739,2]
[368849122,1751376650851,-460.0,0.00018739,2]
[368849124,1751376650862,-460.0,0.00018739,2]
[368849126,1751376650873,-460.0,0.00018739,2]
[368849128,1751376650883,-460.0091802,0.00018739,2]
[368849130,1751376650893,-460.0,0.00018739,2]
[368849132,1751376650903,-460.0,0.00018739,2]
[368849134,1751376650914,-460.0,0.00018739,2]
[368849136,1751376650924,-460.0,0.00018739,2]
[368849138,1751376650934,-704.77,0.00018739,2]
[368849140,1751376650944,-460.0,0.00018739,2]
[368849142,1751376650954,-460.0,0.00018739,2]
[368849144,1751376650965,-768.12,0.00018739,2]
[368849146,1751376650975,-5015.81,0.00018739,2]
[368849148,1751376650985,-460.0,0.00018739,2]
[368849150,1751376650995,-737.94,0.00018739,2]
[368849163,1751376651115,-1161.05,0.00018739,2]
[368849165,1751376651125,-651.54,0.00018739,2]
[368849166,1751376651135,-460.0,0.00018739,2]
[368849167,1751376651145,-2469.46,0.00018739,2]
[368849168,1751376651156,-1448.72,0.00018739,2]
[368849169,1751376651166,-460.0,0.00018739,2]
[368849170,1751376651178,-460.0,0.00018739,2]
[368849171,1751376651187,-460.0,0.00018739,2]
[368849172,1751376651197,-505.9722381,0.00018739,2]
[368849174,1751376651207,-460.0,0.0001874,2]
[368849176,1751376651217,-381.73033018,0.0001874,2]
[368849178,1751376651227,-460.0,0.0001874,2]
[368849180,1751376651237,-460.0,0.0001874,2]
[368849182,1751376651247,-460.0,0.0001874,2]
[368849184,1751376651257,-3553.77,0.0001874,2]
[368849186,1751376651268,-460.0,0.0001874,2]
[368849188,1751376651281,-1753.82,0.0001874,2]
[368849190,1751376651290,-5531.74,0.0001874,2]
[368849192,1751376651300,-1794.4,0.0001874,2]
[368849194,1751376651310,-460.0,0.0001874,2]
[368849196,1751376651320,-460.0,0.00018741,2]
[368849198,1751376651331,-352.17,0.00018741,2]
[368849200,1751376651341,-460.0,0.00018741,2]
[368849202,1751376651351,-460.0,0.00018741,2]
[368849204,1751376651361,-460.0,0.00018742,2]
[368849206,1751376651371,-460.0,0.00018742,2]
[368849208,1751376651383,-460.0,0.00018742,2]
[368849210,1751376651393,-460.0,0.00018742,2]
[368849212,1751376651403,-460.0,0.00018742,2]
[368849215,1751376651412,-460.0,0.00018742,2]
[368849217,1751376651423,-460.0,0.00018742,2]
[368849219,1751376651433,-460.0,0.00018742,2]
[368849221,1751376651444,-460.0,0.00018742,2]
[368849223,1751376651460,-460.0,0.00018742,2]
[368849225,1751376651474,-460.0,0.00018742,2]
[368849227,1751376651487,-460.0,0.00018742,2]
[368849228,1751376651497,-1500.0,0.00018768,2]
[368849230,1751376651508,-1009.05024139,0.00018768,2]
[368849233,1751376651521,-1001.2467786,0.00018768,2]
[368849235,1751376651532,-1500.0,0.00018768,2]
[368849236,1751376651542,-1500.0,0.00018768,2]
[368849239,1751376651554,-150.0,0.00018773,2]
[368849240,1751376651564,-500.0,0.00018773,2]
[368849243,1751376651575,-500.0,0.00018773,2]
[368849245,1751376651585,-500.0,0.00018773,2]
[368849247,1751376651595,-500.0,0.00018773,2]
[368849249,1751376651605,-500.0,0.00018773,2]
[368849251,1751376651615,-161.05583858,0.00018773,2]
[368849253,1751376651625,-248.53472876,0.00018773,2]
[368849255,1751376651634,-517.76796111,0.00018773,2]
[368849257,1751376651645,-600.0,0.00018773,2]
[368849259,1751376651655,-160.0731383,0.00018773,2]
[368849261,1751376651665,-500.0,0.00018773,2]
[368849263,1751376651675,-160.07312464,0.00018773,2]
[368849265,1751376651685,-500.0,0.00018773,2]
[368849267,1751376651695,-500.0,0.00018773,2]
[368849268,1751376651705,-500.0,0.00018773,2]
[368849271,1751376651715,-258.49429359,0.00018773,2]
[368849273,1751376651725,-501.548508,0.00018773,2]
[368849275,1751376651735,-500.0,0.00018773,2]
[368849277,1751376651745,-503.71841949,0.00018773,2]
[368849279,1751376651754,-500.0,0.00018773,2]
[368849281,1751376651764,-257.98737291,0.00018773,2]
[368849283,1751376651775,-500.42084857,0.00018773,2]
[368849285,1751376651789,-500.0,0.00018773,2]
[368849287,1751376651802,-500.0,0.00018773,2]
[368849289,1751376651812,-258.48996399,0.00018773,2]
[368849291,1751376651822,-160.07320936,0.00018773,2]
[368849293,1751376651835,-500.0,0.00018773,2]
[368849295,1751376651846,-160.1480002,0.00018773,2]
[368849297,1751376651857,-501.34027955,0.00018773,2]
[368849299,1751376651867,-500.0,0.00018773,2]